,Portfolio,Expense Area,Cost Centre,Expense Type,Account Code,Amount,Supplier Name,SupplierId,Pay Date,Transaction No.
INSERTED DETAIL,Resources & Corporate Governance ,Toilet Cleaning,WBC01,Materials,0303,525.00,Arco Limited,100015,05/12/2013,10194471
INSERTED DETAIL,Resources & Corporate Governance ,Domestic Waste Collection,WWC00,Personal Protective Clothing,0340,45.40,Arco Limited,100015,05/12/2013,10194471
INSERTED DETAIL,Resources & Corporate Governance ,Grounds Maintenance,WGM00,Materials,0303,129.03,Arco Limited,100015,12/12/2013,10194481
INSERTED DETAIL,Resources & Corporate Governance ,Toilet Cleaning,WBC01,Personal Protective Clothing,0340,6.81,Arco Limited,100015,12/12/2013,10194481
INSERTED DETAIL,Resources & Corporate Governance ,Grounds Maintenance,WGM00,Personal Protective Clothing,0340,71.42,Arco Limited,100015,12/12/2013,10194481
INSERTED DETAIL,Resources & Corporate Governance ,Highways,WHG00,Personal Protective Clothing,0340,10.21,Arco Limited,100015,12/12/2013,10194481
INSERTED DETAIL,Resources & Corporate Governance ,Street Cleansing,WSC00,Personal Protective Clothing,0340,81.60,Arco Limited,100015,12/12/2013,10194481
INSERTED DETAIL,Resources & Corporate Governance ,Garage Internal,WVR01,Personal Protective Clothing,0340,13.61,Arco Limited,100015,12/12/2013,10194481
INSERTED DETAIL,Resources & Corporate Governance ,Domestic Waste Collection,WWC00,Personal Protective Clothing,0340,142.80,Arco Limited,100015,12/12/2013,10194481
INSERTED DETAIL,Resources & Corporate Governance ,Trade Waste Collection,WWC01,Personal Protective Clothing,0340,13.61,Arco Limited,100015,12/12/2013,10194481
INSERTED DETAIL,Resources & Corporate Governance ,General Administration,WAD00,Personal Protective Clothing,0340,125.94,Arco Limited,100015,05/12/2013,10194903
INSERTED DETAIL,Resources & Corporate Governance ,Toilet Cleaning,WBC01,Personal Protective Clothing,0340,5.90,Arco Limited,100015,05/12/2013,10194903
INSERTED DETAIL,Resources & Corporate Governance ,Grounds Maintenance,WGM00,Personal Protective Clothing,0340,61.91,Arco Limited,100015,05/12/2013,10194903
INSERTED DETAIL,Resources & Corporate Governance ,Highways,WHG00,Personal Protective Clothing,0340,8.81,Arco Limited,100015,05/12/2013,10194903
INSERTED DETAIL,Resources & Corporate Governance ,Street Cleansing,WSC00,Personal Protective Clothing,0340,70.75,Arco Limited,100015,05/12/2013,10194903
INSERTED DETAIL,Resources & Corporate Governance ,Garage Internal,WVR01,Personal Protective Clothing,0340,11.80,Arco Limited,100015,05/12/2013,10194903
INSERTED DETAIL,Resources & Corporate Governance ,Domestic Waste Collection,WWC00,Personal Protective Clothing,0340,123.82,Arco Limited,100015,05/12/2013,10194903
INSERTED DETAIL,Resources & Corporate Governance ,Trade Waste Collection,WWC01,Personal Protective Clothing,0340,11.80,Arco Limited,100015,05/12/2013,10194903
INSERTED DETAIL,Sustainable Inclusive Communities,Housing Options Team,HOT00,Rents,0140,896.00,Alma Lodge Hotel,100026,19/12/2013,10195417
INSERTED DETAIL,Housing Revenue Account ,Unplanned Maintenance and Repair,UMR00,R&M External Contractors,0100,4115.45,AWM Electrical Contractors Ltd,100051,09/12/2013,10193878
INSERTED DETAIL,Housing Revenue Account ,Repairs and Maintenance - Void works,UMR09,R&M External Contractors,0100,881.15,AWM Electrical Contractors Ltd,100051,09/12/2013,10193878
INSERTED DETAIL,Capital Program ,Fire Risk Assessment,HCE18,Capital Contract Payments,5000,128.70,AWM Electrical Contractors Ltd,100051,09/12/2013,10193878
INSERTED DETAIL,Housing Revenue Account ,Unplanned Maintenance and Repair,UMR00,R&M External Contractors,0100,6273.24,AWM Electrical Contractors Ltd,100051,09/12/2013,10194119
INSERTED DETAIL,Housing Revenue Account ,Repairs and Maintenance - Void works,UMR09,R&M External Contractors,0100,132.77,AWM Electrical Contractors Ltd,100051,09/12/2013,10194119
INSERTED DETAIL,Housing Revenue Account ,Unplanned Maintenance and Repair,UMR00,R&M External Contractors,0100,2496.06,AWM Electrical Contractors Ltd,100051,05/12/2013,10194725
INSERTED DETAIL,Capital Program ,Disabled Adaptations,HCR01,Capital Contract Payments,5000,166.30,AWM Electrical Contractors Ltd,100051,05/12/2013,10194725
INSERTED DETAIL,Housing Revenue Account ,Unplanned Maintenance and Repair,UMR00,R&M External Contractors,0100,2491.09,AWM Electrical Contractors Ltd,100051,12/12/2013,10194918
INSERTED DETAIL,Housing Revenue Account ,Repairs and Maintenance - Void works,UMR09,R&M External Contractors,0100,5190.35,AWM Electrical Contractors Ltd,100051,12/12/2013,10194918
INSERTED DETAIL,Capital Program ,Fire Risk Assessment,HCE18,Capital Contract Payments,5000,17.02,AWM Electrical Contractors Ltd,100051,12/12/2013,10194918
INSERTED DETAIL,Housing Revenue Account ,Unplanned Maintenance and Repair,UMR00,R&M External Contractors,0100,3322.66,AWM Electrical Contractors Ltd,100051,12/12/2013,10195171
INSERTED DETAIL,Capital Program ,Rewiring,HCE20,Capital Contract Payments,5000,313.27,AWM Electrical Contractors Ltd,100051,12/12/2013,10195171
INSERTED DETAIL,Housing Revenue Account ,Unplanned Maintenance and Repair,UMR00,R&M External Contractors,0100,1950.50,AWM Electrical Contractors Ltd,100051,19/12/2013,10195173
INSERTED DETAIL,Housing Revenue Account ,Repairs and Maintenance - Void works,UMR09,R&M External Contractors,0100,80.08,AWM Electrical Contractors Ltd,100051,19/12/2013,10195173
INSERTED DETAIL,Housing Revenue Account ,Unplanned Maintenance and Repair,UMR00,R&M External Contractors,0100,1127.40,AWM Electrical Contractors Ltd,100051,19/12/2013,10195174
INSERTED DETAIL,Housing Revenue Account ,Repairs and Maintenance - Void works,UMR09,R&M External Contractors,0100,646.35,AWM Electrical Contractors Ltd,100051,19/12/2013,10195174
INSERTED DETAIL,Housing Revenue Account ,Unplanned Maintenance and Repair,UMR00,R&M External Contractors,0100,3359.99,AWM Electrical Contractors Ltd,100051,12/12/2013,10195262
INSERTED DETAIL,Housing Revenue Account ,Unplanned Maintenance and Repair,UMR00,R&M External Contractors,0100,3746.93,AWM Electrical Contractors Ltd,100051,19/12/2013,10195413
INSERTED DETAIL,Housing Revenue Account ,Repairs and Maintenance - Void works,UMR09,R&M External Contractors,0100,1120.33,AWM Electrical Contractors Ltd,100051,19/12/2013,10195413
INSERTED DETAIL,Capital Program ,Fire Risk Assessment,HCE18,Capital Contract Payments,5000,435.00,AWM Electrical Contractors Ltd,100051,19/12/2013,10195413
INSERTED DETAIL,Housing Revenue Account ,Unplanned Maintenance and Repair,UMR00,R&M External Contractors,0100,2313.34,AWM Electrical Contractors Ltd,100051,19/12/2013,10195573
INSERTED DETAIL,Capital Program ,Rewiring,HCE20,Capital Contract Payments,5000,172.06,AWM Electrical Contractors Ltd,100051,19/12/2013,10195573
INSERTED DETAIL,Housing Revenue Account ,Unplanned Maintenance and Repair,UMR00,R&M External Contractors,0100,669.06,AWM Electrical Contractors Ltd,100051,19/12/2013,10195574
INSERTED DETAIL,Capital Program ,Fire Risk Assessment,HCE18,Capital Contract Payments,5000,21.45,AWM Electrical Contractors Ltd,100051,19/12/2013,10195574
INSERTED DETAIL,Housing Revenue Account ,Unplanned Maintenance and Repair,UMR00,R&M External Contractors,0100,7378.63,AWM Electrical Contractors Ltd,100051,19/12/2013,10195724
INSERTED DETAIL,Housing Revenue Account ,Unplanned Maintenance and Repair,UMR00,R&M External Contractors,0100,339.94,AWM Electrical Contractors Ltd,100051,19/12/2013,10195725
INSERTED DETAIL,Capital Program ,Fire Risk Assessment,HCE18,Capital Contract Payments,5000,1157.00,AWM Electrical Contractors Ltd,100051,19/12/2013,10195725
INSERTED DETAIL,Capital Program ,Kitchen Modifications,HIK10,Capital Contract Payments,5000,1420.00,A C E Carpentry & Joinery Contractors Ltd,100085,05/12/2013,10194724
INSERTED DETAIL,Capital Program ,Kitchen Modifications,HIK10,Capital Contract Payments,5000,6893.58,A C E Carpentry & Joinery Contractors Ltd,100085,05/12/2013,10194847
INSERTED DETAIL,Capital Program ,Kitchen Modifications,HIK10,Capital Contract Payments,5000,9191.44,A C E Carpentry & Joinery Contractors Ltd,100085,19/12/2013,10195101
INSERTED DETAIL,Capital Program ,Kitchen Modifications,HIK10,Capital Contract Payments,5000,6893.58,A C E Carpentry & Joinery Contractors Ltd,100085,19/12/2013,10195514
INSERTED DETAIL,Resources & Corporate Governance ,Maintenance of Customer Services Systems,CIS21,Software Maintenance,0374,27654.49,Unit4 Business Software Ltd,100122,05/12/2013,10194210
INSERTED DETAIL,Resources & Corporate Governance ,Grounds Maintenance,WGM00,Materials,0303,1976.25,Banks Amenity Products Ltd,100133,12/12/2013,10195203
INSERTED DETAIL,Resources & Corporate Governance ,Grounds Maintenance,WGM00,Materials,0303,1976.25,Banks Amenity Products Ltd,100133,12/12/2013,10195204
INSERTED DETAIL,Resources & Corporate Governance ,Highways,WHG00,Materials,0303,492.93,Aggregate Industries UK Limited,100134,19/12/2013,10195693
INSERTED DETAIL,Resources & Corporate Governance ,Council Tax and NNDR Collection,CTX01,External Contractor & Operator,0742,73.27,Bristow & Sutor,100159,05/12/2013,10194958
INSERTED DETAIL,Resources & Corporate Governance ,Council Tax and NNDR Collection,CTX01,External Contractor & Operator,0742,79.50,Bristow & Sutor,100159,19/12/2013,10195671
INSERTED DETAIL,Housing Revenue Account ,Sheltered Housing,AGP00,Telephone Expenses,0371,4440.99,British Telecommunications Plc,100161,12/12/2013,10195272
INSERTED DETAIL,Housing Revenue Account ,Multi-Storey Flats,MSF00,Telephone Expenses,0371,88.76,British Telecommunications Plc,100161,12/12/2013,10195272
INSERTED DETAIL,Sustainable Inclusive Communities,Sewage Disposal Plant,SDP00,Telephone Expenses,0371,57.95,British Telecommunications Plc,100161,12/12/2013,10195272
INSERTED DETAIL,Sustainable Inclusive Communities,Woodside Park,TVR00,Telephone Expenses,0371,102.92,British Telecommunications Plc,100161,12/12/2013,10195272
INSERTED DETAIL,Economy Development & Culture,AGM Conservation/Documentation,AGM01,Other Miscellaneous Expenses,0444,470.70,City Electrical Factors  Ltd,100308,05/12/2013,10194796
INSERTED DETAIL,Economy Development & Culture,Economic Development General,ECD00,Development Activities,0450,1400.00,Coventry & Warwickshire Chamber Of Commerce,100412,19/12/2013,10195580
INSERTED DETAIL,Sustainable Environment ,Clinical Waste,REF04,External Contractor & Operator,0742,428.55,OCS Group UK Ltd t/a Cannon,100436,19/12/2013,10195116
INSERTED DETAIL,Sustainable Environment ,Clinical Waste,REF04,External Contractor & Operator,0742,639.34,OCS Group UK Ltd t/a Cannon,100436,19/12/2013,10195287
INSERTED DETAIL,Economy Development & Culture,AGM Exhibitions/Outreach,AGM02,Other Miscellaneous Expenses,0444,500.00,C'Art - Art Transport Ltd,100487,19/12/2013,10195686
INSERTED DETAIL,Housing Revenue Account ,Unplanned Maintenance and Repair,UMR00,R&M External Contractors,0100,1100.00,JADA Building & Maintenance Services Ltd,100583,12/12/2013,10195159
INSERTED DETAIL,Capital Program ,Bathroom Modifications,HIS01,Capital Contract Payments,5000,2788.58,JADA Building & Maintenance Services Ltd,100583,12/12/2013,10195159
INSERTED DETAIL,Housing Revenue Account ,Repairs and Maintenance - Void works,UMR09,R&M External Contractors,0100,741.74,Dulux Decorator Centres,100597,19/12/2013,10195411
INSERTED DETAIL,Housing Revenue Account ,Albert Square AP,AGP20,Gas,0131,1270.23,ESPO,100641,05/12/2013,10194109
INSERTED DETAIL,Housing Revenue Account ,Lesley Souter House AP,AGP16,Gas,0131,972.84,ESPO,100641,05/12/2013,10194110
INSERTED DETAIL,Housing Revenue Account ,Tanser Court AP,AGP17,Gas,0131,1141.28,ESPO,100641,05/12/2013,10194111
INSERTED DETAIL,Housing Revenue Account ,Lesley Souter House AP,AGP16,Gas,0131,972.84,ESPO,100641,05/12/2013,10194495
INSERTED DETAIL,Housing Revenue Account ,Lesley Souter House AP,AGP16,Gas,0131,-972.84,ESPO,100641,05/12/2013,10194496
INSERTED DETAIL,Resources & Corporate Governance,Corporate Property Central Utilities,CPA02,Gas,0131,2300.96,ESPO,100641,19/12/2013,10195529
INSERTED DETAIL,Resources & Corporate Governance,Corporate Property Central Utilities,CPA02,Gas,0131,1752.65,ESPO,100641,19/12/2013,10195530
INSERTED DETAIL,Resources & Corporate Governance ,Town Hall,OFF00,Materials,0303,953.40,Greenham,100890,05/12/2013,10194638
INSERTED DETAIL,Resources & Corporate Governance ,Town Hall,OFF00,Materials,0303,664.40,Greenham,100890,19/12/2013,10195318
INSERTED DETAIL,Economy Development & Culture,Economic Development General,ECD00,Borough Local Plan,0452,26297.13,Gerald Eve,100929,19/12/2013,10194913
INSERTED DETAIL,Resources & Corporate Governance ,Corporate Property Management,CPM00,Asset Management Expenses,0448,11365.74,Godfrey-Payton Chartered Surveyors,100937,19/12/2013,10195408
INSERTED DETAIL,Resources & Corporate Governance ,Human Resources Centralised Services,RES31,Recruitment Expenses,0012,1530.00,TMP (UK) LTD,100972,12/12/2013,10195071
INSERTED DETAIL,Resources & Corporate Governance ,Human Resources Centralised Services,RES31,Recruitment Expenses,0012,805.00,TMP (UK) LTD,100972,19/12/2013,10195313
INSERTED DETAIL,Resources & Corporate Governance ,Human Resources Centralised Services,RES31,Recruitment Expenses,0012,429.60,TMP (UK) LTD,100972,19/12/2013,10195591
INSERTED DETAIL,Resources & Corporate Governance ,Human Resources Centralised Services,RES31,Recruitment Expenses,0012,1530.00,TMP (UK) LTD,100972,19/12/2013,10195592
INSERTED DETAIL,Resources & Corporate Governance,Corporate Property R&M,CPA01,R&M External Contractors,0100,532.50,ThyssenKrupp Elevator UK,100985,19/12/2013,10195396
INSERTED DETAIL,Capital Program ,Woodland Creation Project,WCP00,Capital Contract Payments,5000,8150.00,James Coles & Sons (Nurseries) Ltd,101165,05/12/2013,10194790
INSERTED DETAIL,Capital Program ,Woodland Creation Project,WCP00,Capital Contract Payments,5000,4450.00,James Coles & Sons (Nurseries) Ltd,101165,19/12/2013,10194931
INSERTED DETAIL,Resources & Corporate Governance ,General Financial Services,GFS00,Other Insurance Premiums,0440,125924.82,Jardine Lloyd Thompson,101192,12/12/2013,10195202
INSERTED DETAIL,Resources & Corporate Governance ,General Financial Services,GFS00,Other Insurance Premiums,0440,2466.22,Jardine Lloyd Thompson,101192,12/12/2013,10195205
INSERTED DETAIL,Resources & Corporate Governance ,General Financial Services,GFS00,Other Insurance Premiums,0440,164597.36,Jardine Lloyd Thompson,101192,12/12/2013,10195209
INSERTED DETAIL,Resources & Corporate Governance,Housing Maintenance,WHM00,External Contractor & Operator,0742,448.04,Clews Recycling Limited,101213,05/12/2013,10193787
INSERTED DETAIL,Resources & Corporate Governance ,Grounds Maintenance,WGM00,External Contractor & Operator,0742,7484.00,K A Hicks,101216,19/12/2013,10194989
INSERTED DETAIL,Resources & Corporate Governance ,Grounds Maintenance,WGM00,External Contractor & Operator,0742,7484.00,K A Hicks,101216,19/12/2013,10194990
INSERTED DETAIL,,User Balance Sheet Cost Centre,BSU,Revenue Section Agreements,9865,2284.75,Long Lawford Parish Council,101228,12/12/2013,10195271
INSERTED DETAIL,Resources & Corporate Governance,Housing Maintenance,WHM00,Materials,0303,624.00,Melbros Ltd,101291,19/12/2013,10193746
INSERTED DETAIL,Resources & Corporate Governance,Housing Maintenance,WHM00,Materials,0303,570.00,Melbros Ltd,101291,05/12/2013,10193842
INSERTED DETAIL,Resources & Corporate Governance,Housing Maintenance,WHM00,Materials,0303,932.01,Melbros Ltd,101291,12/12/2013,10193845
INSERTED DETAIL,Resources & Corporate Governance,Housing Maintenance,WHM00,Materials,0303,497.01,Melbros Ltd,101291,05/12/2013,10193849
INSERTED DETAIL,Resources & Corporate Governance,Housing Maintenance,WHM00,Materials,0303,497.01,Melbros Ltd,101291,19/12/2013,10193852
INSERTED DETAIL,Resources & Corporate Governance,Housing Maintenance,WHM00,Materials,0303,497.01,Melbros Ltd,101291,05/12/2013,10193853
INSERTED DETAIL,Resources & Corporate Governance,Housing Maintenance,WHM00,Materials,0303,741.01,Melbros Ltd,101291,12/12/2013,10195065
INSERTED DETAIL,Resources & Corporate Governance,Housing Maintenance,WHM00,Materials,0303,2261.73,Melbros Ltd,101291,19/12/2013,10195211
INSERTED DETAIL,Resources & Corporate Governance,Corporate Property R&M,CPA01,R&M External Contractors,0100,3597.00,Msm Environmental Services,101317,19/12/2013,10195259
INSERTED DETAIL,Resources & Corporate Governance,Corporate Property R&M,CPA01,R&M External Contractors,0100,500.00,Msm Environmental Services,101317,19/12/2013,10195260
INSERTED DETAIL,Economy Development & Culture,Visitor Centre,VSC00,Events Tickets - Zero Rated,1405,985.36,National Express Ltd,101392,12/12/2013,10194955
INSERTED DETAIL,Resources & Corporate Governance ,"Communications, Consultation and Information Team",BTR20,Telephone Expenses,0371,14.13,EE Ltd t/a Orange Personal Communications,101404,12/12/2013,10191367
INSERTED DETAIL,Sustainable Environment ,East European Violence Project,CAD32,Telephone Expenses,0371,3.82,EE Ltd t/a Orange Personal Communications,101404,12/12/2013,10191367
INSERTED DETAIL,Resources & Corporate Governance ,Customer and Information Strategy,CIS10,Telephone Expenses,0371,227.45,EE Ltd t/a Orange Personal Communications,101404,12/12/2013,10191367
INSERTED DETAIL,Economy Development & Culture,Car Parks General,CPK01,Telephone Expenses,0371,5.20,EE Ltd t/a Orange Personal Communications,101404,12/12/2013,10191367
INSERTED DETAIL,Economy Development & Culture,Decrim. of Car Parking on street parking,DPE02,Telephone Expenses,0371,20.80,EE Ltd t/a Orange Personal Communications,101404,12/12/2013,10191367
INSERTED DETAIL,Resources & Corporate Governance ,Safety and Resilience,EPL00,Telephone Expenses,0371,6.00,EE Ltd t/a Orange Personal Communications,101404,12/12/2013,10191367
INSERTED DETAIL,Housing Revenue Account ,Supervision and Management General,MAN00,Telephone Expenses,0371,10.00,EE Ltd t/a Orange Personal Communications,101404,12/12/2013,10191367
INSERTED DETAIL,Economy Development & Culture,Planning General/Income,PLN00,Telephone Expenses,0371,6.00,EE Ltd t/a Orange Personal Communications,101404,12/12/2013,10191367
INSERTED DETAIL,Economy Development & Culture,Planning Management,PLN06,Telephone Expenses,0371,10.00,EE Ltd t/a Orange Personal Communications,101404,12/12/2013,10191367
INSERTED DETAIL,Sustainable Environment,Regulatory Services,REG00,Telephone Expenses,0371,72.13,EE Ltd t/a Orange Personal Communications,101404,12/12/2013,10191367
INSERTED DETAIL,Resources & Corporate Governance ,Head of Resources,RES00,Telephone Expenses,0371,64.82,EE Ltd t/a Orange Personal Communications,101404,12/12/2013,10191367
INSERTED DETAIL,Resources & Corporate Governance,Corporate Property R&M,CPA01,R&M External Contractors,0100,1235.08,Omega Red Group Ltd,101409,19/12/2013,10194798
INSERTED DETAIL,Capital Program ,Disabled Facilities Grant,REN01,Capital Grants,5014,956.82,Orbit Group Limited,101414,05/12/2013,10194982
INSERTED DETAIL,Resources & Corporate Governance,Central Business Support Services,CSS15,Stationery Supplies,0350,437.50,Polycopy,101428,19/12/2013,10195619
INSERTED DETAIL,Sustainable Environment ,Parks,PKS00,R&M External Contractors,0100,512.52,PJT Pumping Services,101438,19/12/2013,10195489
INSERTED DETAIL,Sustainable Inclusive Communities,Sewage Disposal Plant,SDP00,R&M External Contractors,0100,520.28,PJT Pumping Services,101438,19/12/2013,10195490
INSERTED DETAIL,Resources & Corporate Governance ,Customer and Information Strategy,CIS10,Software/Equipment Licences,0379,21028.90,Phoenix Software Ltd,101450,12/12/2013,10194538
INSERTED DETAIL,Resources & Corporate Governance ,Customer and Information Strategy,CIS10,Software/Equipment Licences,0379,21985.28,Phoenix Software Ltd,101450,12/12/2013,10195273
INSERTED DETAIL,Sustainable Environment ,Parks,PKS00,R&M External Contractors,0100,5510.40,Post To Post Fencing,101490,05/12/2013,10194740
INSERTED DETAIL,Capital Program ,Bathroom Modifications,HIS01,Capital Contract Payments,5000,27100.00,Reeds Plumbing & Heating Contractors Ltd,101504,19/12/2013,10195515
INSERTED DETAIL,Sustainable Inclusive Communities,Housing Options Team,HOT00,Council Tax,0142,556.16,Rugby Borough Council,101516,05/12/2013,10191615
INSERTED DETAIL,Housing Revenue Account ,Estate Management,MAN22,Rates,0141,556.16,Rugby Borough Council,101516,05/12/2013,10194123
INSERTED DETAIL,Economy Development & Culture,Art Gallery and Museum,AGM00,Postage & Distribution,0370,12.18,Royal Mail,101554,05/12/2013,10193132
INSERTED DETAIL,Economy Development & Culture,Building Control Services,BCS00,Postage & Distribution,0370,0.11,Royal Mail,101554,05/12/2013,10193132
INSERTED DETAIL,Economy Development & Culture,Building Control Services Non-Fee Earning Account,BCS01,Postage & Distribution,0370,0.11,Royal Mail,101554,05/12/2013,10193132
INSERTED DETAIL,Economy Development & Culture,Building Regulation Fee Earning Account,BCS99,Postage & Distribution,0370,2.06,Royal Mail,101554,05/12/2013,10193132
INSERTED DETAIL,Economy Development & Culture,Car Parks General,CPK01,Postage & Distribution,0370,46.93,Royal Mail,101554,05/12/2013,10193132
INSERTED DETAIL,Resources & Corporate Governance,Central Business Support Services,CSS15,Postage & Distribution,0370,380.86,Royal Mail,101554,05/12/2013,10193132
INSERTED DETAIL,Resources & Corporate Governance ,Council Tax and NNDR Collection,CTX01,Postage & Distribution,0370,254.02,Royal Mail,101554,05/12/2013,10193132
INSERTED DETAIL,Economy Development & Culture,Decrim. of Car Parking on street parking,DPE02,Postage & Distribution,0370,187.70,Royal Mail,101554,05/12/2013,10193132
INSERTED DETAIL,Resources & Corporate Governance ,Electoral Registration,ERG00,Postage & Distribution,0370,134.73,Royal Mail,101554,05/12/2013,10193132
INSERTED DETAIL,Sustainable Inclusive Communities,Housing Benefit Administration,HBA00,Postage & Distribution,0370,287.68,Royal Mail,101554,05/12/2013,10193132
INSERTED DETAIL,Housing Revenue Account ,Supervision and Management General,MAN00,Postage & Distribution,0370,43.30,Royal Mail,101554,05/12/2013,10193132
INSERTED DETAIL,Economy Development & Culture,Planning General/Income,PLN00,Postage & Distribution,0370,192.16,Royal Mail,101554,05/12/2013,10193132
INSERTED DETAIL,Economy Development & Culture,Visitor Centre,VSC00,Postage & Distribution,0370,2.00,Royal Mail,101554,05/12/2013,10193132
INSERTED DETAIL,Resources & Corporate Governance ,General Administration,WAD00,Postage & Distribution,0370,21.87,Royal Mail,101554,05/12/2013,10193132
INSERTED DETAIL,Economy Development & Culture,Art Gallery and Museum,AGM00,Postage & Distribution,0370,1.65,Royal Mail,101554,05/12/2013,10193780
INSERTED DETAIL,Economy Development & Culture,Building Control Services,BCS00,Postage & Distribution,0370,0.05,Royal Mail,101554,05/12/2013,10193780
INSERTED DETAIL,Economy Development & Culture,Building Control Services Non-Fee Earning Account,BCS01,Postage & Distribution,0370,0.05,Royal Mail,101554,05/12/2013,10193780
INSERTED DETAIL,Economy Development & Culture,Building Regulation Fee Earning Account,BCS99,Postage & Distribution,0370,0.84,Royal Mail,101554,05/12/2013,10193780
INSERTED DETAIL,Economy Development & Culture,Car Parks General,CPK01,Postage & Distribution,0370,58.51,Royal Mail,101554,05/12/2013,10193780
INSERTED DETAIL,Resources & Corporate Governance,Central Business Support Services,CSS15,Postage & Distribution,0370,394.98,Royal Mail,101554,05/12/2013,10193780
INSERTED DETAIL,Resources & Corporate Governance ,Council Tax and NNDR Collection,CTX01,Postage & Distribution,0370,164.74,Royal Mail,101554,05/12/2013,10193780
INSERTED DETAIL,Economy Development & Culture,Decrim. of Car Parking on street parking,DPE02,Postage & Distribution,0370,234.04,Royal Mail,101554,05/12/2013,10193780
INSERTED DETAIL,Resources & Corporate Governance ,Electoral Registration,ERG00,Postage & Distribution,0370,25.92,Royal Mail,101554,05/12/2013,10193780
INSERTED DETAIL,Sustainable Inclusive Communities,Housing Benefit Administration,HBA00,Postage & Distribution,0370,253.89,Royal Mail,101554,05/12/2013,10193780
INSERTED DETAIL,Housing Revenue Account ,Supervision and Management General,MAN00,Postage & Distribution,0370,53.74,Royal Mail,101554,05/12/2013,10193780
INSERTED DETAIL,Economy Development & Culture,Planning General/Income,PLN00,Postage & Distribution,0370,106.44,Royal Mail,101554,05/12/2013,10193780
INSERTED DETAIL,Economy Development & Culture,Visitor Centre,VSC00,Postage & Distribution,0370,2.33,Royal Mail,101554,05/12/2013,10193780
INSERTED DETAIL,Resources & Corporate Governance ,General Administration,WAD00,Postage & Distribution,0370,20.05,Royal Mail,101554,05/12/2013,10193780
INSERTED DETAIL,Economy Development & Culture,Art Gallery and Museum,AGM00,Postage & Distribution,0370,14.16,Royal Mail,101554,12/12/2013,10194384
INSERTED DETAIL,Economy Development & Culture,Building Control Services,BCS00,Postage & Distribution,0370,0.24,Royal Mail,101554,12/12/2013,10194384
INSERTED DETAIL,Economy Development & Culture,Building Control Services Non-Fee Earning Account,BCS01,Postage & Distribution,0370,0.24,Royal Mail,101554,12/12/2013,10194384
INSERTED DETAIL,Economy Development & Culture,Building Regulation Fee Earning Account,BCS99,Postage & Distribution,0370,4.38,Royal Mail,101554,12/12/2013,10194384
INSERTED DETAIL,Economy Development & Culture,Car Parks General,CPK01,Postage & Distribution,0370,52.38,Royal Mail,101554,12/12/2013,10194384
INSERTED DETAIL,Resources & Corporate Governance,Central Business Support Services,CSS15,Postage & Distribution,0370,492.95,Royal Mail,101554,12/12/2013,10194384
INSERTED DETAIL,Resources & Corporate Governance ,Council Tax and NNDR Collection,CTX01,Postage & Distribution,0370,37.50,Royal Mail,101554,12/12/2013,10194384
INSERTED DETAIL,Economy Development & Culture,Decrim. of Car Parking on street parking,DPE02,Postage & Distribution,0370,209.51,Royal Mail,101554,12/12/2013,10194384
INSERTED DETAIL,Resources & Corporate Governance ,Electoral Registration,ERG00,Postage & Distribution,0370,942.05,Royal Mail,101554,12/12/2013,10194384
INSERTED DETAIL,Sustainable Inclusive Communities,Housing Benefit Administration,HBA00,Postage & Distribution,0370,308.93,Royal Mail,101554,12/12/2013,10194384
INSERTED DETAIL,Housing Revenue Account ,Supervision and Management General,MAN00,Postage & Distribution,0370,48.50,Royal Mail,101554,12/12/2013,10194384
INSERTED DETAIL,Economy Development & Culture,Planning General/Income,PLN00,Postage & Distribution,0370,252.85,Royal Mail,101554,12/12/2013,10194384
INSERTED DETAIL,Economy Development & Culture,Visitor Centre,VSC00,Postage & Distribution,0370,83.82,Royal Mail,101554,12/12/2013,10194384
INSERTED DETAIL,Resources & Corporate Governance ,General Administration,WAD00,Postage & Distribution,0370,19.33,Royal Mail,101554,12/12/2013,10194384
INSERTED DETAIL,Economy Development & Culture,Art Gallery and Museum,AGM00,Postage & Distribution,0370,2.00,Royal Mail,101554,19/12/2013,10195018
INSERTED DETAIL,Economy Development & Culture,Building Control Services,BCS00,Postage & Distribution,0370,0.12,Royal Mail,101554,19/12/2013,10195018
INSERTED DETAIL,Economy Development & Culture,Building Control Services Non-Fee Earning Account,BCS01,Postage & Distribution,0370,0.12,Royal Mail,101554,19/12/2013,10195018
INSERTED DETAIL,Economy Development & Culture,Building Regulation Fee Earning Account,BCS99,Postage & Distribution,0370,2.13,Royal Mail,101554,19/12/2013,10195018
INSERTED DETAIL,Economy Development & Culture,Car Parks General,CPK01,Postage & Distribution,0370,26.60,Royal Mail,101554,19/12/2013,10195018
INSERTED DETAIL,Resources & Corporate Governance,Central Business Support Services,CSS15,Postage & Distribution,0370,459.70,Royal Mail,101554,19/12/2013,10195018
INSERTED DETAIL,Resources & Corporate Governance ,Council Tax and NNDR Collection,CTX01,Postage & Distribution,0370,285.11,Royal Mail,101554,19/12/2013,10195018
INSERTED DETAIL,Economy Development & Culture,Decrim. of Car Parking on street parking,DPE02,Postage & Distribution,0370,106.41,Royal Mail,101554,19/12/2013,10195018
INSERTED DETAIL,Resources & Corporate Governance ,Electoral Registration,ERG00,Postage & Distribution,0370,236.26,Royal Mail,101554,19/12/2013,10195018
INSERTED DETAIL,Sustainable Inclusive Communities,Housing Benefit Administration,HBA00,Postage & Distribution,0370,174.67,Royal Mail,101554,19/12/2013,10195018
INSERTED DETAIL,Housing Revenue Account ,Supervision and Management General,MAN00,Postage & Distribution,0370,81.87,Royal Mail,101554,19/12/2013,10195018
INSERTED DETAIL,Economy Development & Culture,Planning General/Income,PLN00,Postage & Distribution,0370,260.31,Royal Mail,101554,19/12/2013,10195018
INSERTED DETAIL,Resources & Corporate Governance ,General Administration,WAD00,Postage & Distribution,0370,11.14,Royal Mail,101554,19/12/2013,10195018
INSERTED DETAIL,Resources & Corporate Governance ,Electoral Registration,ERG00,Postage & Distribution,0370,1205.56,Royal Mail,101554,19/12/2013,10195486
INSERTED DETAIL,Housing Revenue Account ,Lesley Souter House AP,AGP16,Water Services,0143,1594.72,Severn Trent Water Ltd,101610,12/12/2013,10194868
INSERTED DETAIL,Capital Program ,Disabled Facilities Grant,REN01,Capital Grants,5014,2127.00,Stannah Stairlifts Ltd,101623,05/12/2013,10194717
INSERTED DETAIL,Capital Program ,Pettiver Crescent,PCH00,Capital Contract Payments,5000,5000.00,Severn Trent Water Ltd,101703,02/12/2013,10194795
INSERTED DETAIL,Capital Program ,Pettiver Crescent,PCH00,Capital Contract Payments,5000,5000.00,Severn Trent Water Ltd,101703,12/12/2013,10195225
INSERTED DETAIL,Resources & Corporate Governance,Housing Maintenance,WHM00,Materials,0303,4598.62,Travis Perkins Trading Co Ltd,101732,05/12/2013,10193250
INSERTED DETAIL,Resources & Corporate Governance,Housing Maintenance,WHM00,Materials,0303,4489.96,Travis Perkins Trading Co Ltd,101732,05/12/2013,10193411
INSERTED DETAIL,Resources & Corporate Governance,Housing Maintenance,WHM00,Materials,0303,3286.72,Travis Perkins Trading Co Ltd,101732,12/12/2013,10193784
INSERTED DETAIL,Resources & Corporate Governance,Housing Maintenance,WHM00,Materials,0303,684.41,Travis Perkins Trading Co Ltd,101732,12/12/2013,10193962
INSERTED DETAIL,Resources & Corporate Governance,Housing Maintenance,WHM00,Materials,0303,2398.74,Travis Perkins Trading Co Ltd,101732,12/12/2013,10194161
INSERTED DETAIL,Resources & Corporate Governance ,Grounds Maintenance,WGM00,Vehicle Running Costs,0201,95.40,HI-Q Motorway,101736,05/12/2013,10194687
INSERTED DETAIL,Resources & Corporate Governance ,Domestic Waste Collection,WWC00,Vehicle Running Costs,0201,196.97,HI-Q Motorway,101736,05/12/2013,10194687
INSERTED DETAIL,Resources & Corporate Governance ,Trade Waste Collection,WWC01,Vehicle Running Costs,0201,265.98,HI-Q Motorway,101736,05/12/2013,10194687
INSERTED DETAIL,Resources & Corporate Governance ,Domestic Waste Collection,WWC00,Materials,0303,3789.75,Egbert H. Taylor & Co Ltd,101741,05/12/2013,10194697
INSERTED DETAIL,Sustainable Inclusive Communities,Private Sector Housing,PSH00,Other Agencies,0734,900.00,Actonenergy,101907,05/12/2013,10194932
INSERTED DETAIL,Housing Revenue Account ,Unplanned Maintenance and Repair,UMR00,R&M External Contractors,0100,468.23,Adroit Services Ltd,101939,12/12/2013,10194589
INSERTED DETAIL,Housing Revenue Account ,Repairs and Maintenance - Void works,UMR09,R&M External Contractors,0100,35.00,Adroit Services Ltd,101939,12/12/2013,10194589
INSERTED DETAIL,Capital Program ,Electric to Gas Conversions,HIM04,Capital Contract Payments,5000,455.00,Adroit Services Ltd,101939,12/12/2013,10194589
INSERTED DETAIL,Capital Program ,Electric to Gas Conversions,HIM04,Capital Contract Payments,5000,8222.76,Adroit Services Ltd,101939,12/12/2013,10194848
INSERTED DETAIL,Housing Revenue Account ,Unplanned Maintenance and Repair,UMR00,R&M External Contractors,0100,334.41,Adroit Services Ltd,101939,05/12/2013,10194869
INSERTED DETAIL,Capital Program ,Electric to Gas Conversions,HIM04,Capital Contract Payments,5000,635.90,Adroit Services Ltd,101939,05/12/2013,10194869
INSERTED DETAIL,Housing Revenue Account ,Unplanned Maintenance and Repair,UMR00,R&M External Contractors,0100,869.41,Adroit Services Ltd,101939,12/12/2013,10195263
INSERTED DETAIL,Housing Revenue Account ,Unplanned Maintenance and Repair,UMR00,R&M External Contractors,0100,66.89,Adroit Services Ltd,101939,19/12/2013,10195723
INSERTED DETAIL,Capital Program ,Electric to Gas Conversions,HIM04,Capital Contract Payments,5000,1051.54,Adroit Services Ltd,101939,19/12/2013,10195723
INSERTED DETAIL,Resources & Corporate Governance ,"Communications, Consultation and Information Team",BTR20,Publicity & Marketing,0377,419.50,Johnston Publishing Ltd,107468,05/12/2013,10193743
INSERTED DETAIL,Capital Program ,Crematorium Project,BUR04,Capital Contract Payments,5000,518099.77,Daventry District Council,108940,19/12/2013,10195474
INSERTED DETAIL,Capital Program ,Crematorium Project,BUR04,Miscellaneous Capital Expenditure,5020,130860.37,Daventry District Council,108940,19/12/2013,10195474
INSERTED DETAIL,Economy Development & Culture,Planning General/Income,PLN00,External Legal Costs,0741,1000.00,SATNAM SINGH CHOONGH,109271,19/12/2013,10195468
INSERTED DETAIL,Economy Development & Culture,Economic Development General,ECD00,Development Activities,0450,1495.00,HIGHWAY TRAFFIC MANAGEMENT,109404,19/12/2013,10195579
INSERTED DETAIL,Resources & Corporate Governance ,Garage Internal,WVR01,Materials,0303,33091.10,Watson Petroleum,110361,19/12/2013,10195566
INSERTED DETAIL,Resources & Corporate Governance,Corporate Property R&M,CPA01,R&M External Contractors,0100,1018.18,Croxford Electrical Ltd,110451,19/12/2013,10195132
INSERTED DETAIL,Resources & Corporate Governance,Corporate Property R&M,CPA01,R&M External Contractors,0100,470.25,Croxford Electrical Ltd,110451,19/12/2013,10195244
INSERTED DETAIL,Resources & Corporate Governance ,Grounds Maintenance,WGM00,External Contractor & Operator,0742,2295.96,Mark Smithers,112612,19/12/2013,10195428
INSERTED DETAIL,Resources & Corporate Governance ,Maintenance of Customer Services Systems,CIS21,Software Maintenance,0374,73925.64,Civica UK Ltd,112724,05/12/2013,10194491
INSERTED DETAIL,Resources & Corporate Governance ,Domestic Waste Collection,WWC00,Agency Staff,0003,514.80,Extra Personnel Limited,112996,05/12/2013,10194418
INSERTED DETAIL,Resources & Corporate Governance ,Domestic Waste Collection,WWC00,Agency Staff,0003,431.14,Extra Personnel Limited,112996,05/12/2013,10194895
INSERTED DETAIL,Resources & Corporate Governance ,Maintenance of Customer Services Systems,CIS21,Software Maintenance,0374,2000.00,TriNova Systems Ltd,113069,12/12/2013,10194984
INSERTED DETAIL,Housing Revenue Account ,Unplanned Maintenance and Repair,UMR00,R&M External Contractors,0100,1291.30,Temple Lifts Ltd,114738,19/12/2013,10195019
INSERTED DETAIL,Sustainable Environment ,Cemeteries General,CEM00,Purchases for Resale,0305,604.50,Streetmaster (South Wales) Ltd,114898,12/12/2013,10195099
INSERTED DETAIL,Sustainable Inclusive Communities,Housing Options Team,HOT00,Rents,0140,455.00,Diamond House Hotel,115070,05/12/2013,10192741
INSERTED DETAIL,Sustainable Inclusive Communities,Housing Options Team,HOT00,Rents,0140,741.70,Diamond House Hotel,115070,05/12/2013,10194712
INSERTED DETAIL,Resources & Corporate Governance ,Grounds Maintenance,WGM00,Contract Hire,0220,1550.00,Townsend Vehicle Hire,115165,19/12/2013,10195237
INSERTED DETAIL,Resources & Corporate Governance,Housing Maintenance,WHM00,Contract Hire,0220,150.00,Townsend Vehicle Hire,115165,19/12/2013,10195237
INSERTED DETAIL,Sustainable Inclusive Communities,CL Grants,CGS00,Grants To Voluntary Organisations,0720,7500.00,Newbold on Avon Rugby Football Club,115674,19/12/2013,10195419
INSERTED DETAIL,Resources & Corporate Governance ,General Financial Services,GFS00,Other Insurance Premiums,0440,6725.47,Zurich Insurance plc,116530,12/12/2013,10195214
INSERTED DETAIL,Resources & Corporate Governance ,General Financial Services,GFS00,Other Insurance Premiums,0440,158558.21,Zurich Insurance plc,116530,12/12/2013,10195222
INSERTED DETAIL,Resources & Corporate Governance ,Grounds Maintenance,WGM00,Materials,0303,700.00,Wall Bros,117489,19/12/2013,10195073
INSERTED DETAIL,Resources & Corporate Governance,Housing Maintenance,WHM00,Contract Hire,0220,439.80,Brandon Tool Hire,118489,12/12/2013,10194632
INSERTED DETAIL,Capital Program ,Woodland Creation Project,WCP00,Capital Contract Payments,5000,516.00,Brandon Tool Hire,118489,19/12/2013,10195284
INSERTED DETAIL,Economy Development & Culture,Street Furniture,HIG01,Development Activities,0450,27355.00,Hi-Lite Electrical Ltd,118814,19/12/2013,10195325
INSERTED DETAIL,Resources & Corporate Governance,Corporate Property Central Utilities,CPA02,Electricity,0130,147.15,Southern Electric,118976,19/12/2013,10195540
INSERTED DETAIL,Resources & Corporate Governance ,WSU Depot,WDP00,Electricity,0130,407.79,Southern Electric,118976,19/12/2013,10195540
INSERTED DETAIL,Resources & Corporate Governance,Corporate Property Central Utilities,CPA02,Electricity,0130,8769.71,Southern Electric,118976,19/12/2013,10195578
INSERTED DETAIL,Sustainable Environment,Crematorium,CRM00,Electricity,0130,969.20,Southern Electric,118976,19/12/2013,10195578
INSERTED DETAIL,Housing Revenue Account ,Unplanned Maintenance and Repair,UMR00,R&M External Contractors,0100,547.90,Pro-Tec Security Systems,119999,12/12/2013,10195156
INSERTED DETAIL,Resources & Corporate Governance ,Toilet Cleaning,WBC01,Agency Staff,0003,142.40,G-Staff Ltd,120173,05/12/2013,10193952
INSERTED DETAIL,Resources & Corporate Governance ,Street Cleansing,WSC00,Agency Staff,0003,149.55,G-Staff Ltd,120173,05/12/2013,10193952
INSERTED DETAIL,Resources & Corporate Governance ,Domestic Waste Collection,WWC00,Agency Staff,0003,953.36,G-Staff Ltd,120173,05/12/2013,10193952
INSERTED DETAIL,Resources & Corporate Governance ,Trade Waste Collection,WWC01,Agency Staff,0003,386.10,G-Staff Ltd,120173,05/12/2013,10193952
INSERTED DETAIL,Resources & Corporate Governance ,Toilet Cleaning,WBC01,Agency Staff,0003,748.60,G-Staff Ltd,120173,05/12/2013,10194812
INSERTED DETAIL,Resources & Corporate Governance ,Domestic Waste Collection,WWC00,Agency Staff,0003,1079.10,G-Staff Ltd,120173,05/12/2013,10194812
INSERTED DETAIL,Resources & Corporate Governance ,Toilet Cleaning,WBC01,Agency Staff,0003,748.60,G-Staff Ltd,120173,19/12/2013,10195643
INSERTED DETAIL,Resources & Corporate Governance ,Domestic Waste Collection,WWC00,Agency Staff,0003,740.49,G-Staff Ltd,120173,19/12/2013,10195643
INSERTED DETAIL,Resources & Corporate Governance,Housing Maintenance,WHM00,External Contractor & Operator,0742,550.00,Rugby Roofing,121274,12/12/2013,10194917
INSERTED DETAIL,Sustainable Inclusive Communities,Housing Options Team,HOT00,Agency Staff,0003,643.50,Venn Group Recruitment Solutions,121594,19/12/2013,10195278
INSERTED DETAIL,Resources & Corporate Governance ,Maintenance of Customer Services Systems,CIS21,Software Purchase,0373,1500.00,Northgate Information Solutions UK Ltd,121606,05/12/2013,10193153
INSERTED DETAIL,Resources & Corporate Governance,Central Business Support Services,CSS15,Photocopying,0354,1769.00,Northgate Information Solutions UK Ltd,121606,12/12/2013,10195086
INSERTED DETAIL,Resources & Corporate Governance,Central Business Support Services,CSS15,Postage & Distribution,0370,1482.45,DX NETWORK SERVICES LTD,121717,12/12/2013,10195223
INSERTED DETAIL,Resources & Corporate Governance,Central Business Support Services,CSS15,Postage & Distribution,0370,952.50,DX NETWORK SERVICES LTD,121717,19/12/2013,10195266
INSERTED DETAIL,Housing Revenue Account ,Supervision and Management General,MAN00,Publicity & Marketing,0377,1225.00,Janus Kreative,121748,05/12/2013,10194981
INSERTED DETAIL,Resources & Corporate Governance ,Maintenance of Customer Services Systems,CIS21,Software Maintenance,0374,4555.11,Covalent Software Limited,122520,19/12/2013,10195629
INSERTED DETAIL,Housing Revenue Account ,Supervision and Management General,MAN00,Subscriptions,0421,720.00,HQN Limited,122890,05/12/2013,10193910
INSERTED DETAIL,Housing Revenue Account ,Supervision and Management General,MAN00,Consultancy Costs,0740,3230.00,HQN Limited,122890,05/12/2013,10194204
INSERTED DETAIL,Sustainable Inclusive Communities,Housing Options Team,HOT00,Training fees,0011,450.00,HQN Limited,122890,05/12/2013,10194450
INSERTED DETAIL,Housing Revenue Account ,Supervision and Management General,MAN00,Recruitment Expenses,0012,2304.00,HQN Limited,122890,19/12/2013,10195685
INSERTED DETAIL,Resources & Corporate Governance ,Human Resources Centralised Services,RES31,Recruitment Expenses,0012,1536.00,HQN Limited,122890,19/12/2013,10195685
INSERTED DETAIL,Housing Revenue Account ,Maintenance of Open Spaces,MOS00,External Contractor & Operator,0742,508.65,Brinklow Quarry,122921,12/12/2013,10194928
INSERTED DETAIL,Capital Program ,Open Spaces Refurbishment,LEI08,Capital Contract Payments,5000,-2500.00,Proludic,123148,12/12/2013,10194223
INSERTED DETAIL,Capital Program ,Open Spaces Refurbishment,LEI08,Capital Contract Payments,5000,5000.00,Proludic,123148,12/12/2013,10195429
INSERTED DETAIL,Resources & Corporate Governance ,Central Telephone Service,TEL00,Telephone Expenses,0371,1168.88,Cable & Wireless/T/A Vodafone,123224,19/12/2013,10195423
INSERTED DETAIL,Resources & Corporate Governance ,Grounds Maintenance,WGM00,External Contractor & Operator,0742,600.00,Katie Burfitt,123330,12/12/2013,10194874
INSERTED DETAIL,Resources & Corporate Governance ,Domestic Waste Collection,WWC00,Materials,0303,14632.68,SSI Schaefer Ltd,123543,19/12/2013,10195115
INSERTED DETAIL,Resources & Corporate Governance,Corporate Property R&M,CPA01,R&M External Contractors,0100,596.40,Smith Of Derby Ltd,128660,19/12/2013,10195642
INSERTED DETAIL,Resources & Corporate Governance,Housing Maintenance,WHM00,External Contractor & Operator,0742,567.50,M P Hudson & Son,129334,05/12/2013,10194914
INSERTED DETAIL,Resources & Corporate Governance,Housing Maintenance,WHM00,External Contractor & Operator,0742,593.00,M P Hudson & Son,129334,12/12/2013,10195233
INSERTED DETAIL,Resources & Corporate Governance,Housing Maintenance,WHM00,External Contractor & Operator,0742,617.50,M P Hudson & Son,129334,19/12/2013,10195694
INSERTED DETAIL,Resources & Corporate Governance ,Domestic Waste Collection,WWC00,Materials,0303,1119.00,Get it Sorted Limited,129426,19/12/2013,10195665
INSERTED DETAIL,Resources & Corporate Governance ,Borough Elections,ELC00,Postal Voting Stationery,0360,708.69,Print.UK.Com,129503,05/12/2013,10194493
INSERTED DETAIL,Economy Development & Culture,Decrim. of Car Parking on street parking,DPE02,Cash Collection,0744,591.84,Jade Security Services Ltd,131711,19/12/2013,10195267
INSERTED DETAIL,Economy Development & Culture,Car Parks General,CPK01,Cash Collection,0744,1052.16,Jade Security Services Ltd,131711,19/12/2013,10195268
INSERTED DETAIL,Sustainable Inclusive Communities,Housing Options Team,HOT00,Rents,0140,640.00,N Mallidi,132033,05/12/2013,10183167
INSERTED DETAIL,Housing Revenue Account ,Unplanned Maintenance and Repair,UMR00,R&M External Contractors,0100,1062.48,Wilson Electrics,132051,12/12/2013,10195153
INSERTED DETAIL,Housing Revenue Account ,Unplanned Maintenance and Repair,UMR00,R&M External Contractors,0100,1031.03,Wilson Electrics,132051,19/12/2013,10195572
INSERTED DETAIL,Resources & Corporate Governance ,Corporate Assurance,BTR40,External Contractor & Operator,0742,420.00,HW Controls & Assurance,132240,05/12/2013,10189006
INSERTED DETAIL,Housing Revenue Account ,Unplanned Maintenance and Repair,UMR00,R&M External Contractors,0100,2265.00,RF Digital Ltd,133161,19/12/2013,10195448
INSERTED DETAIL,Economy Development & Culture,Town Centre CCTV and Management,TVM00,Other Agencies,0734,20739.58,Rugby First Ltd - BID,133176,05/12/2013,10194878
INSERTED DETAIL,Resources & Corporate Governance ,Highways,WHG00,Materials,0303,441.48,Breedon Aggregates England Limited,133309,19/12/2013,10194909
INSERTED DETAIL,Resources & Corporate Governance ,Highways,WHG00,Materials,0303,498.08,Breedon Aggregates England Limited,133309,19/12/2013,10195118
INSERTED DETAIL,Resources & Corporate Governance ,Highways,WHG00,Materials,0303,770.51,Breedon Aggregates England Limited,133309,19/12/2013,10195651
INSERTED DETAIL,Sustainable Environment ,Parks,PKS00,Materials,0303,1470.00,Easy-gate Ltd,133591,05/12/2013,10194803
INSERTED DETAIL,Housing Revenue Account ,Supervision and Management General,MAN00,Recruitment Expenses,0012,2688.00,Ocean Media Group Ltd,133594,05/12/2013,10194657
INSERTED DETAIL,Sustainable Inclusive Communities,Housing Options Team,HOT00,Agency Staff,0003,966.75,Community Resourcing,133778,05/12/2013,10194445
INSERTED DETAIL,Sustainable Inclusive Communities,Housing Options Team,HOT00,Agency Staff,0003,992.53,Community Resourcing,133778,05/12/2013,10194853
INSERTED DETAIL,Resources & Corporate Governance,Corporate Property R&M,CPA01,R&M External Contractors,0100,600.00,Sunfish Services Ltd,133886,19/12/2013,10194838
INSERTED DETAIL,Housing Revenue Account ,Unplanned Maintenance and Repair,UMR00,R&M External Contractors,0100,2308.98,Sunfish Services Ltd,133886,05/12/2013,10194916
INSERTED DETAIL,Resources & Corporate Governance ,Garage Internal,WVR01,Materials,0303,957.20,Brenntag UK Limited,135098,19/12/2013,10194802
INSERTED DETAIL,Economy Development & Culture,Car Parks General,CPK01,Other Consumables,0351,857.00,Darrall & Dodd Print Limited,135645,19/12/2013,10195328
INSERTED DETAIL,Economy Development & Culture,Decrim. of Car Parking on street parking,DPE02,Other Consumables,0351,3428.00,Darrall & Dodd Print Limited,135645,19/12/2013,10195328
INSERTED DETAIL,Economy Development & Culture,Car Parks General,CPK01,Other Consumables,0351,470.00,Darrall & Dodd Print Limited,135645,19/12/2013,10195329
INSERTED DETAIL,Economy Development & Culture,Decrim. of Car Parking on street parking,DPE02,Other Consumables,0351,1880.00,Darrall & Dodd Print Limited,135645,19/12/2013,10195329
INSERTED DETAIL,Housing Revenue Account ,Alfred Green Close AP,AGP01,Electricity,0130,395.93,Southern Electric,135653,05/12/2013,10193951
INSERTED DETAIL,Housing Revenue Account ,John Thwaites Close AP,AGP08,Electricity,0130,201.36,Southern Electric,135653,05/12/2013,10193951
INSERTED DETAIL,Housing Revenue Account ,Mercer Court AP,AGP09,Electricity,0130,103.61,Southern Electric,135653,05/12/2013,10193951
INSERTED DETAIL,Housing Revenue Account ,Stacey Court AP,AGP12,Electricity,0130,139.61,Southern Electric,135653,05/12/2013,10193951
INSERTED DETAIL,Housing Revenue Account ,Tanser Court AP,AGP17,Electricity,0130,994.79,Southern Electric,135653,05/12/2013,10193951
INSERTED DETAIL,Housing Revenue Account ,Eliot Court AP,AGP25,Electricity,0130,54.01,Southern Electric,135653,05/12/2013,10193951
INSERTED DETAIL,Housing Revenue Account ,Hirst Close AP,AGP33,Electricity,0130,756.77,Southern Electric,135653,05/12/2013,10193951
INSERTED DETAIL,Housing Revenue Account ,Assheton Close AP,AGP36,Electricity,0130,128.45,Southern Electric,135653,05/12/2013,10193951
INSERTED DETAIL,Housing Revenue Account ,Bennett Court/Warwick Road AP,AGP38,Electricity,0130,24.90,Southern Electric,135653,05/12/2013,10193951
INSERTED DETAIL,Housing Revenue Account ,Deepmore Road/Lytham Road AP,AGP42,Electricity,0130,267.64,Southern Electric,135653,05/12/2013,10193951
INSERTED DETAIL,Housing Revenue Account ,Edmondson Close Dunchurch AP,AGP44,Electricity,0130,434.71,Southern Electric,135653,05/12/2013,10193951
INSERTED DETAIL,Housing Revenue Account ,Harold Cox Place AP,AGP51,Electricity,0130,204.91,Southern Electric,135653,05/12/2013,10193951
INSERTED DETAIL,Housing Revenue Account ,Miscellaneous AP,AGP99,Electricity,0130,18.98,Southern Electric,135653,05/12/2013,10193951
INSERTED DETAIL,Housing Revenue Account ,Supervision and Management General,MAN00,Electricity,0130,25.64,Southern Electric,135653,05/12/2013,10193951
INSERTED DETAIL,Sustainable Inclusive Communities,Woodside Park,TVR00,Electricity,0130,4111.41,Southern Electric,135653,05/12/2013,10193951
INSERTED DETAIL,Housing Revenue Account ,Frederick Press Way AP,AGP06,Electricity,0130,890.43,Southern Electric,135653,19/12/2013,10195553
INSERTED DETAIL,Housing Revenue Account ,Mercer Court AP,AGP09,Electricity,0130,-181.01,Southern Electric,135653,19/12/2013,10195553
INSERTED DETAIL,Housing Revenue Account ,Robotham Close AP,AGP11,Electricity,0130,557.03,Southern Electric,135653,19/12/2013,10195553
INSERTED DETAIL,Housing Revenue Account ,Stretton Court AP,AGP13,Electricity,0130,301.32,Southern Electric,135653,19/12/2013,10195553
INSERTED DETAIL,Housing Revenue Account ,Brookside Pailton AP,AGP40,Electricity,0130,213.72,Southern Electric,135653,19/12/2013,10195553
INSERTED DETAIL,Housing Revenue Account ,Deepmore Road/Lytham Road AP,AGP42,Electricity,0130,33.75,Southern Electric,135653,19/12/2013,10195553
INSERTED DETAIL,Housing Revenue Account ,Great Balance Brinklow AP,AGP48,Electricity,0130,82.95,Southern Electric,135653,19/12/2013,10195553
INSERTED DETAIL,Housing Revenue Account ,Meadow Way/Primrose Court AP,AGP58,Electricity,0130,47.29,Southern Electric,135653,19/12/2013,10195553
INSERTED DETAIL,Housing Revenue Account ,Norman Road AP,AGP60,Electricity,0130,39.05,Southern Electric,135653,19/12/2013,10195553
INSERTED DETAIL,Housing Revenue Account ,Patterdale AP,AGP61,Electricity,0130,116.36,Southern Electric,135653,19/12/2013,10195553
INSERTED DETAIL,Housing Revenue Account ,Victoria Street/Lawford Road AP,AGP68,Electricity,0130,36.80,Southern Electric,135653,19/12/2013,10195553
INSERTED DETAIL,Housing Revenue Account ,Parkfield Road/Lea Crescent AP,AGP71,Electricity,0130,184.86,Southern Electric,135653,19/12/2013,10195553
INSERTED DETAIL,Housing Revenue Account ,Pennington Street/Round Street AP,AGP72,Electricity,0130,372.21,Southern Electric,135653,19/12/2013,10195553
INSERTED DETAIL,Housing Revenue Account ,Supervision and Management General,MAN00,Electricity,0130,130.37,Southern Electric,135653,19/12/2013,10195553
INSERTED DETAIL,Sustainable Inclusive Communities,Woodside Park,TVR00,Electricity,0130,-1419.73,Southern Electric,135653,19/12/2013,10195553
INSERTED DETAIL,Sustainable Inclusive Communities,Housing Strategy & Enabling,HSE00,Agency Staff,0003,671.88,Morgan Hunt UK Ltd,136143,19/12/2013,10195146
INSERTED DETAIL,Resources & Corporate Governance ,Council Tax and NNDR Collection,CTX01,External Legal Costs,0741,1432.00,Summers Nigh Law,136330,05/12/2013,10194885
INSERTED DETAIL,Resources & Corporate Governance ,Council Tax and NNDR Collection,CTX01,Software Maintenance,0374,600.00,Mag:net Solutions Ltd,139547,05/12/2013,10194915
INSERTED DETAIL,Resources & Corporate Governance ,Maintenance of Customer Services Systems,CIS21,Software Maintenance,0374,4659.01,Midland Software Ltd,140463,12/12/2013,10194871
INSERTED DETAIL,Sustainable Environment ,Parks,PKS00,External Contractor & Operator,0742,660.00,StoneWall Security Ltd,140775,19/12/2013,10195154
INSERTED DETAIL,Resources & Corporate Governance ,Borough Elections,ELC00,Clerical Assistance,0404,739.00,REDACTED PERSONAL DATA,143258,19/12/2013,10195470
INSERTED DETAIL,Sustainable Environment ,Cemeteries General,CEM00,External Contractor & Operator,0742,835.00,All Gates and Rails,143665,19/12/2013,10195431
INSERTED DETAIL,Housing Revenue Account ,Control Centre CCTV,CCE01,External Contractor & Operator,0742,15574.92,Securitas Security Personnel Ltd,145079,05/12/2013,10194728
INSERTED DETAIL,Resources & Corporate Governance ,Grounds Maintenance,WGM00,Agency Staff,0003,231.28,Blue Arrow Limited,145492,12/12/2013,10193319
INSERTED DETAIL,Resources & Corporate Governance,Housing Maintenance,WHM00,Agency Staff,0003,1602.44,Blue Arrow Limited,145492,12/12/2013,10193319
INSERTED DETAIL,Resources & Corporate Governance ,Street Cleansing,WSC00,Agency Staff,0003,747.40,Blue Arrow Limited,145492,12/12/2013,10193319
INSERTED DETAIL,Resources & Corporate Governance ,Domestic Waste Collection,WWC00,Agency Staff,0003,723.60,Blue Arrow Limited,145492,12/12/2013,10193319
INSERTED DETAIL,Resources & Corporate Governance ,Grounds Maintenance,WGM00,Agency Staff,0003,331.83,Blue Arrow Limited,145492,05/12/2013,10193999
INSERTED DETAIL,Resources & Corporate Governance,Housing Maintenance,WHM00,Agency Staff,0003,1255.82,Blue Arrow Limited,145492,05/12/2013,10193999
INSERTED DETAIL,Resources & Corporate Governance ,Street Cleansing,WSC00,Agency Staff,0003,1104.07,Blue Arrow Limited,145492,05/12/2013,10193999
INSERTED DETAIL,Resources & Corporate Governance ,Domestic Waste Collection,WWC00,Agency Staff,0003,1244.10,Blue Arrow Limited,145492,05/12/2013,10193999
INSERTED DETAIL,Resources & Corporate Governance ,Grounds Maintenance,WGM00,Agency Staff,0003,521.13,Blue Arrow Limited,145492,05/12/2013,10194810
INSERTED DETAIL,Resources & Corporate Governance,Housing Maintenance,WHM00,Agency Staff,0003,1738.51,Blue Arrow Limited,145492,05/12/2013,10194810
INSERTED DETAIL,Resources & Corporate Governance ,Street Cleansing,WSC00,Agency Staff,0003,954.44,Blue Arrow Limited,145492,05/12/2013,10194810
INSERTED DETAIL,Resources & Corporate Governance ,Domestic Waste Collection,WWC00,Agency Staff,0003,1500.48,Blue Arrow Limited,145492,05/12/2013,10194810
INSERTED DETAIL,Resources & Corporate Governance ,Trade Waste Collection,WWC01,Agency Staff,0003,21.80,Blue Arrow Limited,145492,05/12/2013,10194810
INSERTED DETAIL,Resources & Corporate Governance,Housing Maintenance,WHM00,Agency Staff,0003,1706.42,Blue Arrow Limited,145492,05/12/2013,10194813
INSERTED DETAIL,Resources & Corporate Governance ,Street Cleansing,WSC00,Agency Staff,0003,755.54,Blue Arrow Limited,145492,05/12/2013,10194813
INSERTED DETAIL,Resources & Corporate Governance ,Domestic Waste Collection,WWC00,Agency Staff,0003,1759.60,Blue Arrow Limited,145492,05/12/2013,10194813
INSERTED DETAIL,Resources & Corporate Governance,Housing Maintenance,WHM00,Agency Staff,0003,1745.12,Blue Arrow Limited,145492,19/12/2013,10195594
INSERTED DETAIL,Resources & Corporate Governance ,Street Cleansing,WSC00,Agency Staff,0003,960.43,Blue Arrow Limited,145492,19/12/2013,10195594
INSERTED DETAIL,Resources & Corporate Governance ,Domestic Waste Collection,WWC00,Agency Staff,0003,2106.27,Blue Arrow Limited,145492,19/12/2013,10195594
INSERTED DETAIL,Resources & Corporate Governance ,Trade Waste Collection,WWC01,Agency Staff,0003,109.00,Blue Arrow Limited,145492,19/12/2013,10195594
INSERTED DETAIL,Resources & Corporate Governance ,General Financial Services,GFS00,External Contractor & Operator,0742,18098.00,Grant Thornton UK LLP,145501,19/12/2013,10195627
INSERTED DETAIL,Housing Revenue Account ,Supervision and Management General,MAN00,Publicity & Marketing,0377,1421.03,Impress Print,145574,12/12/2013,10195401
INSERTED DETAIL,Capital Program ,Disabled Adaptations,HCR01,Capital Contract Payments,5000,4986.43,Easibathe Limited,146401,05/12/2013,10194818
INSERTED DETAIL,Capital Program ,Disabled Adaptations,HCR01,Capital Contract Payments,5000,865.57,Easibathe Limited,146401,05/12/2013,10194940
INSERTED DETAIL,Resources & Corporate Governance,Housing Maintenance,WHM00,External Contractor & Operator,0742,590.00,Mick Brown Plastering,146699,19/12/2013,10195360
INSERTED DETAIL,Resources & Corporate Governance,Corporate Property R&M,CPA01,R&M External Contractors,0100,3874.00,Ecolight,146781,05/12/2013,10194316
INSERTED DETAIL,Resources & Corporate Governance ,Trade Waste Collection,WWC01,Agency Staff,0003,467.41,Fresh Recruitment Solutions (FRS) Ltd,146784,19/12/2013,10195110
INSERTED DETAIL,Resources & Corporate Governance ,Trade Waste Collection,WWC01,Agency Staff,0003,467.41,Fresh Recruitment Solutions (FRS) Ltd,146784,19/12/2013,10195659
INSERTED DETAIL,Resources & Corporate Governance ,Retired Employees,RET00,Additional Pension Payments,0014,11096.71,WCC Pension Fund,146914,05/12/2013,10194954
INSERTED DETAIL,Economy Development & Culture,Art Gallery and Museum,AGM00,Postage & Distribution,0370,15.94,TNT Post Midlands Ltd,146983,05/12/2013,10193142
INSERTED DETAIL,Economy Development & Culture,Building Control Services,BCS00,Postage & Distribution,0370,0.72,TNT Post Midlands Ltd,146983,05/12/2013,10193142
INSERTED DETAIL,Economy Development & Culture,Building Control Services Non-Fee Earning Account,BCS01,Postage & Distribution,0370,0.72,TNT Post Midlands Ltd,146983,05/12/2013,10193142
INSERTED DETAIL,Economy Development & Culture,Building Regulation Fee Earning Account,BCS99,Postage & Distribution,0370,12.96,TNT Post Midlands Ltd,146983,05/12/2013,10193142
INSERTED DETAIL,Resources & Corporate Governance,Central Business Support Services,CSS15,Postage & Distribution,0370,72.33,TNT Post Midlands Ltd,146983,05/12/2013,10193142
INSERTED DETAIL,Resources & Corporate Governance ,Council Tax and NNDR Collection,CTX01,Postage & Distribution,0370,208.14,TNT Post Midlands Ltd,146983,05/12/2013,10193142
INSERTED DETAIL,Resources & Corporate Governance ,Electoral Registration,ERG00,Postage & Distribution,0370,75.20,TNT Post Midlands Ltd,146983,05/12/2013,10193142
INSERTED DETAIL,Sustainable Inclusive Communities,Housing Benefit Administration,HBA00,Postage & Distribution,0370,214.29,TNT Post Midlands Ltd,146983,05/12/2013,10193142
INSERTED DETAIL,Housing Revenue Account ,Supervision and Management General,MAN00,Postage & Distribution,0370,85.34,TNT Post Midlands Ltd,146983,05/12/2013,10193142
INSERTED DETAIL,Resources & Corporate Governance ,General Administration,WAD00,Postage & Distribution,0370,3.94,TNT Post Midlands Ltd,146983,05/12/2013,10193142
INSERTED DETAIL,Economy Development & Culture,Building Control Services,BCS00,Postage & Distribution,0370,0.57,TNT Post Midlands Ltd,146983,05/12/2013,10193409
INSERTED DETAIL,Economy Development & Culture,Building Control Services Non-Fee Earning Account,BCS01,Postage & Distribution,0370,0.57,TNT Post Midlands Ltd,146983,05/12/2013,10193409
INSERTED DETAIL,Economy Development & Culture,Building Regulation Fee Earning Account,BCS99,Postage & Distribution,0370,10.20,TNT Post Midlands Ltd,146983,05/12/2013,10193409
INSERTED DETAIL,Resources & Corporate Governance,Central Business Support Services,CSS15,Postage & Distribution,0370,51.94,TNT Post Midlands Ltd,146983,05/12/2013,10193409
INSERTED DETAIL,Resources & Corporate Governance ,Council Tax and NNDR Collection,CTX01,Postage & Distribution,0370,188.80,TNT Post Midlands Ltd,146983,05/12/2013,10193409
INSERTED DETAIL,Resources & Corporate Governance ,Electoral Registration,ERG00,Postage & Distribution,0370,152.39,TNT Post Midlands Ltd,146983,05/12/2013,10193409
INSERTED DETAIL,Sustainable Inclusive Communities,Housing Benefit Administration,HBA00,Postage & Distribution,0370,208.07,TNT Post Midlands Ltd,146983,05/12/2013,10193409
INSERTED DETAIL,Housing Revenue Account ,Supervision and Management General,MAN00,Postage & Distribution,0370,29.68,TNT Post Midlands Ltd,146983,05/12/2013,10193409
INSERTED DETAIL,Resources & Corporate Governance ,General Administration,WAD00,Postage & Distribution,0370,1.71,TNT Post Midlands Ltd,146983,05/12/2013,10193409
INSERTED DETAIL,Economy Development & Culture,Art Gallery and Museum,AGM00,Postage & Distribution,0370,0.28,TNT Post Midlands Ltd,146983,05/12/2013,10193782
INSERTED DETAIL,Economy Development & Culture,Building Control Services,BCS00,Postage & Distribution,0370,0.83,TNT Post Midlands Ltd,146983,05/12/2013,10193782
INSERTED DETAIL,Economy Development & Culture,Building Control Services Non-Fee Earning Account,BCS01,Postage & Distribution,0370,0.83,TNT Post Midlands Ltd,146983,05/12/2013,10193782
INSERTED DETAIL,Economy Development & Culture,Building Regulation Fee Earning Account,BCS99,Postage & Distribution,0370,14.85,TNT Post Midlands Ltd,146983,05/12/2013,10193782
INSERTED DETAIL,Resources & Corporate Governance,Central Business Support Services,CSS15,Postage & Distribution,0370,51.83,TNT Post Midlands Ltd,146983,05/12/2013,10193782
INSERTED DETAIL,Resources & Corporate Governance ,Council Tax and NNDR Collection,CTX01,Postage & Distribution,0370,272.69,TNT Post Midlands Ltd,146983,05/12/2013,10193782
INSERTED DETAIL,Resources & Corporate Governance ,Electoral Registration,ERG00,Postage & Distribution,0370,34.92,TNT Post Midlands Ltd,146983,05/12/2013,10193782
INSERTED DETAIL,Sustainable Inclusive Communities,Housing Benefit Administration,HBA00,Postage & Distribution,0370,150.17,TNT Post Midlands Ltd,146983,05/12/2013,10193782
INSERTED DETAIL,Housing Revenue Account ,Supervision and Management General,MAN00,Postage & Distribution,0370,57.32,TNT Post Midlands Ltd,146983,05/12/2013,10193782
INSERTED DETAIL,Resources & Corporate Governance ,General Administration,WAD00,Postage & Distribution,0370,10.22,TNT Post Midlands Ltd,146983,05/12/2013,10193782
INSERTED DETAIL,Economy Development & Culture,Art Gallery and Museum,AGM00,Postage & Distribution,0370,0.30,TNT Post Midlands Ltd,146983,05/12/2013,10194140
INSERTED DETAIL,Economy Development & Culture,Building Control Services,BCS00,Postage & Distribution,0370,0.69,TNT Post Midlands Ltd,146983,05/12/2013,10194140
INSERTED DETAIL,Economy Development & Culture,Building Control Services Non-Fee Earning Account,BCS01,Postage & Distribution,0370,0.69,TNT Post Midlands Ltd,146983,05/12/2013,10194140
INSERTED DETAIL,Economy Development & Culture,Building Regulation Fee Earning Account,BCS99,Postage & Distribution,0370,12.49,TNT Post Midlands Ltd,146983,05/12/2013,10194140
INSERTED DETAIL,Resources & Corporate Governance,Central Business Support Services,CSS15,Postage & Distribution,0370,48.87,TNT Post Midlands Ltd,146983,05/12/2013,10194140
INSERTED DETAIL,Resources & Corporate Governance ,Council Tax and NNDR Collection,CTX01,Postage & Distribution,0370,291.44,TNT Post Midlands Ltd,146983,05/12/2013,10194140
INSERTED DETAIL,Resources & Corporate Governance ,Electoral Registration,ERG00,Postage & Distribution,0370,56.37,TNT Post Midlands Ltd,146983,05/12/2013,10194140
INSERTED DETAIL,Sustainable Inclusive Communities,Housing Benefit Administration,HBA00,Postage & Distribution,0370,251.33,TNT Post Midlands Ltd,146983,05/12/2013,10194140
INSERTED DETAIL,Housing Revenue Account ,Supervision and Management General,MAN00,Postage & Distribution,0370,20.92,TNT Post Midlands Ltd,146983,05/12/2013,10194140
INSERTED DETAIL,Economy Development & Culture,Visitor Centre,VSC00,Postage & Distribution,0370,0.30,TNT Post Midlands Ltd,146983,05/12/2013,10194140
INSERTED DETAIL,Resources & Corporate Governance ,General Administration,WAD00,Postage & Distribution,0370,5.40,TNT Post Midlands Ltd,146983,05/12/2013,10194140
INSERTED DETAIL,Economy Development & Culture,Art Gallery and Museum,AGM00,Postage & Distribution,0370,245.06,TNT Post Midlands Ltd,146983,05/12/2013,10194466
INSERTED DETAIL,Economy Development & Culture,Building Control Services,BCS00,Postage & Distribution,0370,0.47,TNT Post Midlands Ltd,146983,05/12/2013,10194466
INSERTED DETAIL,Economy Development & Culture,Building Control Services Non-Fee Earning Account,BCS01,Postage & Distribution,0370,0.47,TNT Post Midlands Ltd,146983,05/12/2013,10194466
INSERTED DETAIL,Economy Development & Culture,Building Regulation Fee Earning Account,BCS99,Postage & Distribution,0370,8.40,TNT Post Midlands Ltd,146983,05/12/2013,10194466
INSERTED DETAIL,Resources & Corporate Governance,Central Business Support Services,CSS15,Postage & Distribution,0370,114.17,TNT Post Midlands Ltd,146983,05/12/2013,10194466
INSERTED DETAIL,Resources & Corporate Governance ,Council Tax and NNDR Collection,CTX01,Postage & Distribution,0370,226.81,TNT Post Midlands Ltd,146983,05/12/2013,10194466
INSERTED DETAIL,Resources & Corporate Governance ,Electoral Registration,ERG00,Postage & Distribution,0370,23.79,TNT Post Midlands Ltd,146983,05/12/2013,10194466
INSERTED DETAIL,Sustainable Inclusive Communities,Housing Benefit Administration,HBA00,Postage & Distribution,0370,164.14,TNT Post Midlands Ltd,146983,05/12/2013,10194466
INSERTED DETAIL,Housing Revenue Account ,Supervision and Management General,MAN00,Postage & Distribution,0370,17.15,TNT Post Midlands Ltd,146983,05/12/2013,10194466
INSERTED DETAIL,Resources & Corporate Governance ,General Administration,WAD00,Postage & Distribution,0370,7.47,TNT Post Midlands Ltd,146983,05/12/2013,10194466
INSERTED DETAIL,Economy Development & Culture,Art Gallery and Museum,AGM00,Postage & Distribution,0370,15.60,TNT Post Midlands Ltd,146983,05/12/2013,10194675
INSERTED DETAIL,Economy Development & Culture,Building Control Services,BCS00,Postage & Distribution,0370,0.46,TNT Post Midlands Ltd,146983,05/12/2013,10194675
INSERTED DETAIL,Economy Development & Culture,Building Control Services Non-Fee Earning Account,BCS01,Postage & Distribution,0370,0.46,TNT Post Midlands Ltd,146983,05/12/2013,10194675
INSERTED DETAIL,Economy Development & Culture,Building Regulation Fee Earning Account,BCS99,Postage & Distribution,0370,8.37,TNT Post Midlands Ltd,146983,05/12/2013,10194675
INSERTED DETAIL,Resources & Corporate Governance,Central Business Support Services,CSS15,Postage & Distribution,0370,64.28,TNT Post Midlands Ltd,146983,05/12/2013,10194675
INSERTED DETAIL,Resources & Corporate Governance ,Council Tax and NNDR Collection,CTX01,Postage & Distribution,0370,201.94,TNT Post Midlands Ltd,146983,05/12/2013,10194675
INSERTED DETAIL,Resources & Corporate Governance ,Electoral Registration,ERG00,Postage & Distribution,0370,30.36,TNT Post Midlands Ltd,146983,05/12/2013,10194675
INSERTED DETAIL,Sustainable Inclusive Communities,Housing Benefit Administration,HBA00,Postage & Distribution,0370,145.80,TNT Post Midlands Ltd,146983,05/12/2013,10194675
INSERTED DETAIL,Housing Revenue Account ,Supervision and Management General,MAN00,Postage & Distribution,0370,21.39,TNT Post Midlands Ltd,146983,05/12/2013,10194675
INSERTED DETAIL,Resources & Corporate Governance ,General Administration,WAD00,Postage & Distribution,0370,7.24,TNT Post Midlands Ltd,146983,05/12/2013,10194675
INSERTED DETAIL,Economy Development & Culture,Building Control Services,BCS00,Postage & Distribution,0370,0.83,TNT Post Midlands Ltd,146983,19/12/2013,10195103
INSERTED DETAIL,Economy Development & Culture,Building Control Services Non-Fee Earning Account,BCS01,Postage & Distribution,0370,0.83,TNT Post Midlands Ltd,146983,19/12/2013,10195103
INSERTED DETAIL,Economy Development & Culture,Building Regulation Fee Earning Account,BCS99,Postage & Distribution,0370,14.97,TNT Post Midlands Ltd,146983,19/12/2013,10195103
INSERTED DETAIL,Resources & Corporate Governance,Central Business Support Services,CSS15,Postage & Distribution,0370,102.54,TNT Post Midlands Ltd,146983,19/12/2013,10195103
INSERTED DETAIL,Resources & Corporate Governance ,Council Tax and NNDR Collection,CTX01,Postage & Distribution,0370,201.43,TNT Post Midlands Ltd,146983,19/12/2013,10195103
INSERTED DETAIL,Resources & Corporate Governance ,Electoral Registration,ERG00,Postage & Distribution,0370,10.71,TNT Post Midlands Ltd,146983,19/12/2013,10195103
INSERTED DETAIL,Sustainable Inclusive Communities,Housing Benefit Administration,HBA00,Postage & Distribution,0370,151.81,TNT Post Midlands Ltd,146983,19/12/2013,10195103
INSERTED DETAIL,Housing Revenue Account ,Supervision and Management General,MAN00,Postage & Distribution,0370,65.85,TNT Post Midlands Ltd,146983,19/12/2013,10195103
INSERTED DETAIL,Resources & Corporate Governance ,General Administration,WAD00,Postage & Distribution,0370,2.65,TNT Post Midlands Ltd,146983,19/12/2013,10195103
INSERTED DETAIL,Economy Development & Culture,Art Gallery and Museum,AGM00,Postage & Distribution,0370,6.63,TNT Post Midlands Ltd,146983,19/12/2013,10195410
INSERTED DETAIL,Economy Development & Culture,Building Control Services,BCS00,Postage & Distribution,0370,0.88,TNT Post Midlands Ltd,146983,19/12/2013,10195410
INSERTED DETAIL,Economy Development & Culture,Building Control Services Non-Fee Earning Account,BCS01,Postage & Distribution,0370,0.88,TNT Post Midlands Ltd,146983,19/12/2013,10195410
INSERTED DETAIL,Economy Development & Culture,Building Regulation Fee Earning Account,BCS99,Postage & Distribution,0370,15.82,TNT Post Midlands Ltd,146983,19/12/2013,10195410
INSERTED DETAIL,Resources & Corporate Governance,Central Business Support Services,CSS15,Postage & Distribution,0370,75.02,TNT Post Midlands Ltd,146983,19/12/2013,10195410
INSERTED DETAIL,Resources & Corporate Governance ,Council Tax and NNDR Collection,CTX01,Postage & Distribution,0370,237.38,TNT Post Midlands Ltd,146983,19/12/2013,10195410
INSERTED DETAIL,Resources & Corporate Governance ,Electoral Registration,ERG00,Postage & Distribution,0370,3.62,TNT Post Midlands Ltd,146983,19/12/2013,10195410
INSERTED DETAIL,Sustainable Inclusive Communities,Housing Benefit Administration,HBA00,Postage & Distribution,0370,157.37,TNT Post Midlands Ltd,146983,19/12/2013,10195410
INSERTED DETAIL,Housing Revenue Account ,Supervision and Management General,MAN00,Postage & Distribution,0370,37.92,TNT Post Midlands Ltd,146983,19/12/2013,10195410
INSERTED DETAIL,Resources & Corporate Governance ,General Administration,WAD00,Postage & Distribution,0370,2.71,TNT Post Midlands Ltd,146983,19/12/2013,10195410
INSERTED DETAIL,Resources & Corporate Governance,Housing Maintenance,WHM00,External Contractor & Operator,0742,1768.09,Intelligent Disabled Solutions Ltd,147081,19/12/2013,10194765
INSERTED DETAIL,Resources & Corporate Governance,Housing Maintenance,WHM00,External Contractor & Operator,0742,3350.00,K A Cooke Limited,147120,19/12/2013,10195696
INSERTED DETAIL,Resources & Corporate Governance,Housing Maintenance,WHM00,External Contractor & Operator,0742,835.00,K A Cooke Limited,147120,19/12/2013,10195697
INSERTED DETAIL,Resources & Corporate Governance,Housing Maintenance,WHM00,External Contractor & Operator,0742,1600.00,K A Cooke Limited,147120,19/12/2013,10195698
INSERTED DETAIL,Resources & Corporate Governance,Housing Maintenance,WHM00,External Contractor & Operator,0742,1750.00,K A Cooke Limited,147120,19/12/2013,10195699
INSERTED DETAIL,Resources & Corporate Governance,Housing Maintenance,WHM00,External Contractor & Operator,0742,1400.00,K A Cooke Limited,147120,19/12/2013,10195700
INSERTED DETAIL,Resources & Corporate Governance ,Domestic Waste Collection,WWC00,External Contractor & Operator,0742,600.00,James Baxter Haulage Ltd,147159,05/12/2013,10194710
INSERTED DETAIL,Resources & Corporate Governance ,Domestic Waste Collection,WWC00,External Contractor & Operator,0742,450.00,James Baxter Haulage Ltd,147159,12/12/2013,10194998
INSERTED DETAIL,Resources & Corporate Governance ,Domestic Waste Collection,WWC00,External Contractor & Operator,0742,900.00,James Baxter Haulage Ltd,147159,19/12/2013,10195420
INSERTED DETAIL,Housing Revenue Account ,Unplanned Maintenance and Repair,UMR00,R&M External Contractors,0100,673.90,Howard Ward Associates LLP,147433,19/12/2013,10195491
INSERTED DETAIL,Capital Program ,Kitchen Modifications,HIK10,Capital Contract Payments,5000,1875.00,Rixonway Kitchens Ltd,147446,05/12/2013,10194867
INSERTED DETAIL,Capital Program ,Kitchen Modifications,HIK10,Capital Contract Payments,5000,6933.10,Rixonway Kitchens Ltd,147446,19/12/2013,10195426
INSERTED DETAIL,Capital Program ,Kitchen Modifications,HIK10,Capital Contract Payments,5000,2091.15,Rixonway Kitchens Ltd,147446,19/12/2013,10195498
INSERTED DETAIL,Capital Program ,Kitchen Modifications,HIK10,Capital Contract Payments,5000,12545.30,Rixonway Kitchens Ltd,147446,19/12/2013,10195538
INSERTED DETAIL,Resources & Corporate Governance,Corporate Property R&M,CPA01,R&M External Contractors,0100,1119.28,Hygienic Concepts,147630,05/12/2013,10193948
INSERTED DETAIL,Capital Program ,Queen's Diamond Jubilee Leisure Centre Project,LEI03,Capital Contract Payments,5000,127108.15,Shepherd Construction Ltd,148014,19/12/2013,10195628
INSERTED DETAIL,Resources & Corporate Governance,Housing Maintenance,WHM00,External Contractor & Operator,0742,547.50,Dean Hudson,148035,05/12/2013,10194912
INSERTED DETAIL,Resources & Corporate Governance,Housing Maintenance,WHM00,External Contractor & Operator,0742,540.00,Dean Hudson,148035,12/12/2013,10195232
INSERTED DETAIL,Resources & Corporate Governance,Housing Maintenance,WHM00,External Contractor & Operator,0742,577.50,Dean Hudson,148035,19/12/2013,10195695
INSERTED DETAIL,Resources & Corporate Governance ,Street Cleansing,WSC00,Vehicle Repair and Maintenance,0200,598.29,Clemas & Co Ltd,148440,05/12/2013,10194695
INSERTED DETAIL,Capital Program ,Open Spaces Refurbishment,LEI08,Capital Contract Payments,5000,15603.10,J P Landscapes & Construction Ltd,148502,19/12/2013,10195595
INSERTED DETAIL,Housing Revenue Account ,Unplanned Maintenance and Repair,UMR00,R&M External Contractors,0100,1396.71,Robert Heath Heating Ltd,148858,05/12/2013,10194005
INSERTED DETAIL,Housing Revenue Account ,Gas Heating Systems,UMR01,R&M External Contractors,0100,257.03,Robert Heath Heating Ltd,148858,05/12/2013,10194005
INSERTED DETAIL,Housing Revenue Account ,Repairs and Maintenance - Void works,UMR09,R&M External Contractors,0100,824.01,Robert Heath Heating Ltd,148858,05/12/2013,10194005
INSERTED DETAIL,Housing Revenue Account ,Gas Heating Systems,UMR01,R&M External Contractors,0100,866.92,Robert Heath Heating Ltd,148858,19/12/2013,10195430
INSERTED DETAIL,Housing Revenue Account ,Unplanned Maintenance and Repair,UMR00,R&M External Contractors,0100,657.63,Robert Heath Heating Ltd,148858,19/12/2013,10195447
INSERTED DETAIL,Housing Revenue Account ,Gas Heating Systems,UMR01,R&M External Contractors,0100,59.01,Robert Heath Heating Ltd,148858,19/12/2013,10195447
INSERTED DETAIL,Housing Revenue Account ,Repairs and Maintenance - Void works,UMR09,R&M External Contractors,0100,578.75,Robert Heath Heating Ltd,148858,19/12/2013,10195447
INSERTED DETAIL,Housing Revenue Account ,Gas Heating Systems,UMR01,R&M External Contractors,0100,13635.00,Robert Heath Heating Ltd,148858,19/12/2013,10195516
INSERTED DETAIL,Resources & Corporate Governance,Central Business Support Services,CSS15,Photocopying,0354,1386.69,Xerox Finance Ltd,148940,05/12/2013,10194667
INSERTED DETAIL,Capital Program ,Bathroom Modifications,HIS01,Capital Contract Payments,5000,600.00,Capita Property & Infrastructure Ltd,148946,05/12/2013,10194827
INSERTED DETAIL,Economy Development & Culture,The Benn Hall,BHL00,Purchases for Resale,0305,2881.49,Matthew Clark Wholesale Ltd,148975,19/12/2013,10195610
INSERTED DETAIL,Resources & Corporate Governance,Corporate Property R&M,CPA01,R&M External Contractors,0100,533.51,KAD Flooring Ltd,149051,05/12/2013,10194629
INSERTED DETAIL,Resources & Corporate Governance,Housing Maintenance,WHM00,External Contractor & Operator,0742,500.00,PJR Services,149062,05/12/2013,10194877
INSERTED DETAIL,Economy Development & Culture,The Benn Hall,BHL00,Special Events/Activities,0447,1215.25,Chaplins TV Ltd,149077,12/12/2013,10195231
INSERTED DETAIL,Resources & Corporate Governance ,Human Resources Centralised Services,RES31,Training fees,0011,1120.00,Advent IM Ltd,149114,05/12/2013,10194820
INSERTED DETAIL,Resources & Corporate Governance ,Customer and Information Strategy,CIS10,Hardware Maintenance,0376,5950.00,ICOMM Technologies Ltd,149115,12/12/2013,10193310
INSERTED DETAIL,Resources & Corporate Governance,Corporate Property R&M,CPA01,R&M External Contractors,0100,440.00,Superclean Services Wothorpe,149153,05/12/2013,10194660
INSERTED DETAIL,Housing Revenue Account ,Sheltered Housing,AGP00,Contract Cleaning,0170,11850.58,Superclean Services Wothorpe,149153,12/12/2013,10194733
INSERTED DETAIL,Sustainable Inclusive Communities,Housing Options Team,HOT00,Contract Cleaning,0170,112.51,Superclean Services Wothorpe,149153,12/12/2013,10194733
INSERTED DETAIL,Housing Revenue Account ,Estate Management,MAN22,Contract Cleaning,0170,2552.47,Superclean Services Wothorpe,149153,12/12/2013,10194733
INSERTED DETAIL,Housing Revenue Account ,Multi-Storey Flats,MSF00,Contract Cleaning,0170,1434.45,Superclean Services Wothorpe,149153,12/12/2013,10194733
INSERTED DETAIL,Housing Revenue Account ,Sheltered Housing,AGP00,Contract Cleaning,0170,11850.58,Superclean Services Wothorpe,149153,12/12/2013,10194863
INSERTED DETAIL,Sustainable Inclusive Communities,Housing Options Team,HOT00,Contract Cleaning,0170,112.51,Superclean Services Wothorpe,149153,12/12/2013,10194863
INSERTED DETAIL,Housing Revenue Account ,Estate Management,MAN22,Contract Cleaning,0170,2552.47,Superclean Services Wothorpe,149153,12/12/2013,10194863
INSERTED DETAIL,Housing Revenue Account ,Multi-Storey Flats,MSF00,Contract Cleaning,0170,1434.45,Superclean Services Wothorpe,149153,12/12/2013,10194863
INSERTED DETAIL,Resources & Corporate Governance ,Town Hall,OFF00,Contract Cleaning,0170,4195.83,Superclean Services Wothorpe,149153,05/12/2013,10194864
INSERTED DETAIL,Resources & Corporate Governance ,WSU Depot,WDP00,Contract Cleaning,0170,395.83,Superclean Services Wothorpe,149153,05/12/2013,10194864
INSERTED DETAIL,Resources & Corporate Governance ,Grounds Maintenance,WGM00,Contract Cleaning,0170,200.00,Superclean Services Wothorpe,149153,05/12/2013,10194864
INSERTED DETAIL,Capital Program ,Disabled Adaptations,HCR01,Capital Contract Payments,5000,2742.00,Care in Bathing Ltd,149191,05/12/2013,10194901
INSERTED DETAIL,Economy Development & Culture,Economic Development General,ECD00,Other,0763,928.92,Coton Forward,149194,12/12/2013,10195147
INSERTED DETAIL,Economy Development & Culture,Planning General/Income,PLN00,External Legal Costs,0741,600.00,Mr Jonathan Salmon,149244,12/12/2013,10195138
INSERTED DETAIL,Sustainable Inclusive Communities,Housing Options Team,HOT00,Rents,0140,1980.00,Croft Hotel,149257,05/12/2013,10192396
INSERTED DETAIL,Resources & Corporate Governance ,Human Resources Centralised Services,RES31,Recruitment Expenses,0012,625.00,Telegraph Media Group Ltd,149260,12/12/2013,10195096
INSERTED DETAIL,Economy Development & Culture,The Benn Hall,BHL00,Special Events/Activities,0447,700.00,Gag Reflex Ltd,149264,19/12/2013,10195445
INSERTED DETAIL,Capital Program ,Pettiver Crescent,PCH00,Capital Contract Payments,5000,111216.27,Wates Construction Ltd,149267,12/12/2013,10194983
INSERTED DETAIL,Capital Program ,Pettiver Crescent,PCH00,Capital Contract Payments,5000,138519.10,Wates Construction Ltd,149267,19/12/2013,10195749
INSERTED DETAIL,Resources & Corporate Governance ,Customer and Information Strategy,CIS10,Hardware Purchase,0375,206.33,Tangible Benefit,149276,19/12/2013,10195069
INSERTED DETAIL,Resources & Corporate Governance ,Maintenance of Customer Services Systems,CIS21,Hardware Purchase,0375,2377.56,Tangible Benefit,149276,19/12/2013,10195069
INSERTED DETAIL,Resources & Corporate Governance ,Benn Hall ICT,CMP24,IT Capital Expenditure,5025,5772.60,Delta Computer Services,149319,12/12/2013,10192645
INSERTED DETAIL,Economy Development & Culture,The Benn Hall,BHL00,New Equipment,0300,1937.00,Delta Computer Services,149319,05/12/2013,10194840
INSERTED DETAIL,Resources & Corporate Governance ,Benn Hall ICT,CMP24,IT Capital Expenditure,5025,-1937.00,Delta Computer Services,149319,12/12/2013,10195208
INSERTED DETAIL,Economy Development & Culture,The Benn Hall,BHL00,New Equipment,0300,-1937.00,Delta Computer Services,149319,12/12/2013,10195210
INSERTED DETAIL,Resources & Corporate Governance,Corporate Property R&M,CPA01,R&M External Contractors,0100,712.00,AFI-Uplift Limited,149322,19/12/2013,10195087
INSERTED DETAIL,Sustainable Environment,Licencing,LIC00,External Contractor & Operator,0742,502.96,VIP-SYSTEM Ltd,149351,05/12/2013,10194933
INSERTED DETAIL,Economy Development & Culture,The Benn Hall,BHL00,Events Tickets - Standard Rated,1404,9412.20,Cecil Benjamin,149392,19/12/2013,10195670
INSERTED DETAIL,Economy Development & Culture,The Benn Hall,BHL00,Special Events/Activities,0447,1600.00,Five Star Swing,149420,05/12/2013,10194865
INSERTED DETAIL,Resources & Corporate Governance ,Customer and Information Strategy,CIS10,Agency Staff,0003,1230.00,Modis International Ltd,149424,19/12/2013,10194936
INSERTED DETAIL,Resources & Corporate Governance ,Customer and Information Strategy,CIS10,Agency Staff,0003,2250.00,Modis International Ltd,149424,19/12/2013,10194942
INSERTED DETAIL,Resources & Corporate Governance ,Customer and Information Strategy,CIS10,Agency Staff,0003,2570.00,Modis International Ltd,149424,19/12/2013,10194943
INSERTED DETAIL,Housing Revenue Account ,Supervision and Management General,MAN00,Movement Incentives,0454,500.00,REDACTED PERSONAL DATA,149428,05/12/2013,10194882
INSERTED DETAIL,Capital Program ,Capital Partnership Fund,CGR01,Capital Grants,5014,5100.00,Rugby Sikh Community Association,149432,19/12/2013,10195196
INSERTED DETAIL,Housing Revenue Account ,Unplanned Maintenance and Repair,UMR00,R&M External Contractors,0100,13018.00,Affordable Warmth Solutions,149436,19/12/2013,10195394
INSERTED DETAIL,Economy Development & Culture,The Benn Hall,BHL00,Special Events/Activities,0447,800.00,Sabrina Duncan International,149439,19/12/2013,10195467
detail,Economy Development & Culture,AGM Exhibitions/Outreach,AGM02,Other Miscellaneous Expenses,0444,1000.00,REDACTED PERSONAL DATA,149440,19/12/2013,10195480
,Resources & Corporate Governance ,"Communications, Consultation and Information Team",BTR20,Other Miscellaneous Expenses,0444,500.00,Information Commissioner,,09/12/2013,30043
,,Balance Sheet,BS,Cov & Warks Pooling Fund,9476,1380109.00,Cov & Warks Pooling Fund,,18/12/2013,30060
,,Balance Sheet,BS,Business Rate Retention Scheme payment,9476,2118340.00,CLG,,19/11/2013,30085
,,Balance Sheet,BS,Business Rate Retention Scheme payment,9476,424665.00,WCC County Fund,,19/12/2013,30084
,Resources & Corporate Governance ,General Financial Services,GFS00,Payment Card Costs,0444,1025.78,Capita,,20/12/2013,30088
